Cogmind - Beta 14 @@@ ROGUE MODE // 2024.11.24 @ 16:09:56 Player: Ayre223 Result: Destroyed by D-53 Grenadier with Mini Grenade Launcher Performance ------------- Evolutions (0) 0 Regions Visited (4) 800 Robots Destroyed (8) 40 Value Destroyed (226) 226 Prototype IDs (23) 460 Alien Tech Used (0) 0 Bonus (300) 300 TOTAL SCORE: 1826 Bonus ------- Aligned with FarCom 300 Cogmind --------- Core Integrity 0/250 Matter 223/300 Energy 98/100 System Corruption 0% Temperature Cool (83) Movement Walking (120) Location -9/Mines Parts ------- > --- POWER (1) -------- (None) > --- PROPULSION (2) --- Aluminum Leg > --- UTILITY (2) ------ Targeting Computer > --- WEAPON (2) ------- (None) > --- INVENTORY (5) ---- Ion Engine Aluminum Leg Small Laser Small Laser Peak State ------------ > --- POWER ------------ Ion Engine > --- PROPULSION ------- Aluminum Leg Aluminum Leg > --- UTILITY ---------- Targeting Computer Cloak of Protection > --- WEAPON ----------- Small Laser Rocket Launcher > --- INVENTORY -------- Ion Engine Aluminum Leg Aluminum Leg Small Laser Light Assault Rifle [Rating: 15] Favorites ----------- Power Ion Engine Engine Ion Engine Propulsion Aluminum Leg Leg Aluminum Leg Flight Unit Flight Unit Utility Targeting Computer Device Cloak of Protection Processor Targeting Computer Weapon Small Laser Energy Gun Small Laser Ballistic Gun Light Assault Rifle Launcher Rocket Launcher Build | -11 -10 -10 -10 -9 ------- Run | Yrd Mat Min Exi Min Slots Evolved . | . . . . . Power . | . . . . . Propulsion . | . . . . . Utility . | . . . . . Weapon . | . . . . . Parts Attached 22 | 6 2 4 3 7 Power 2 | 1 . 1 . . Engine 2 | 1 . 1 . . Core . | . . . . . Reactor . | . . . . . Propulsion 10 | 2 . 2 2 4 Treads . | . . . . . Leg 8 | 2 . . 2 4 Wheel . | . . . . . Hover . | . . . . . Flight 2 | . . 2 . . Utility 4 | . 2 1 1 . Device 2 | . 1 . 1 . Storage . | . . . . . Processor 2 | . 1 1 . . Hackware . | . . . . . Protection . | . . . . . Artifact . | . . . . . Weapon 6 | 3 . . . 3 Energy Gun 4 | 2 . . . 2 Energy Cannon . | . . . . . Ballistic Gun 1 | 1 . . . . Ballistic Cannon . | . . . . . Launcher 1 | . . . . 1 Special Weapon . | . . . . . Impact Weapon . | . . . . . Slashing Weapon . | . . . . . Piercing Weapon . | . . . . . Special Melee Weapon . | . . . . . Unidentified Prototypes . | . . . . . Parts Lost 7 | . . 1 . 6 Power 2 | . . 1 . 1 Propulsion 2 | . . . . 2 Utility 1 | . . . . 1 Weapon 2 | . . . . 2 Highest Loss Streak 6 | . . 1 . 6 To Critical Strikes . | . . . . . Average Slot Usage (%) 98 | . 95 99 100 98 Engine 13 | . 14 13 14 14 Leg 22 | . 28 9 19 28 Flight 5 | . . 18 8 . Device 11 | . 12 9 10 13 Processor 15 | . 10 18 17 14 Energy Gun 24 | . 28 28 28 19 Launcher 3 | . . . . 7 Peak Build Rating 15 | 5 7 7 14 15 Average Rating 10 | 3 6 6 12 14 On Entrance 6 | . 5 7 7 14 Naked Turns . | . . . . . Heaviest Build 18 | 5 6 8 15 18 Greatest Support 20 | 20 20 20 20 20 Greatest Overweight (x) 1 | . . . 1 . Average Overweight (x) . | . . . . . Largest Inventory Capacity 5 | 5 5 5 5 5 Average Capacity 5 | 5 5 5 5 5 Most Carried 5 | 2 2 5 5 5 Average Carried 3 | . 1 3 3 4 Final Capacity 5 | 5 5 5 5 5 Final Carried 5 | 1 1 5 3 4 Class Distribution -------------------- 68% | Mutant 31% | Scavenger-Mutant Dominant Class ---------------- Mutant | -10/Materials Scavenger-Mutant | -10/Mines Mutant | -10/Exiles Mutant | -9/Mines Resources | -11 -10 -10 -10 -9 ----------- Run | Yrd Mat Min Exi Min Matter Collected 388 | 263 . 55 . 70 Remotely . | . . . . . Salvage Created 304 | 46 . 124 . 134 Parts 20 | 3 . 13 . 4 Haulers Intercepted . | . . . . . Recyclers Shooed . | . . . . . Parts Field Recycled . | . . . . . Retrieved Matter . | . . . . . Parts Self-Destructed . | . . . . . Prevented . | . . . . . Kills | -11 -10 -10 -10 -9 ------- Run | Yrd Mat Min Exi Min Combat Hostiles Destroyed 15 | 1 . 5 . 9 Guns 8 | 1 . 5 . 2 AOE 7 | . . . . 7 Classes Destroyed 3 | 1 . 1 . 1 Swarmer 3 | . . 3 . . Grunt 5 | 1 . 2 . 2 Assembled 7 | . . . . 7 Best Kill Streak 7 | 1 . 5 . 7 Combat Bots Only 7 | 1 . 5 . 7 Max Kills in Single Turn 3 | 1 . 1 . 3 Gunslinging . | . . . . . Exploded 3 | . . . . 3 Melee . | . . . . . Uniques/NPCs Destroyed . | . . . . . Combat | -11 -10 -10 -10 -9 -------- Run | Yrd Mat Min Exi Min Hostile Shots Fired 91 | 3 . 29 . 59 Missed 25 | 1 . 11 . 13 Damage Taken 1116 | 22 . 155 . 939 Core 258 | 12 . 16 . 230 Absorbed by Shields . | . . . . . Core Remaining (%) 95 | 95 . . . . Volleys Fired 34 | 3 . 12 . 19 Largest 2 | 2 . 2 . 2 Hottest 80 | 60 . 80 . 80 Shots Fired 68 | 6 . 24 . 38 Gun 61 | 6 . 24 . 31 Cannon . | . . . . . Launcher 7 | . . . . 7 Special . | . . . . . Kinetic 3 | 3 . . . . Thermal 58 | 3 . 24 . 31 Explosive 7 | . . . . 7 Electromagnetic . | . . . . . Robot Hit Streak 6 | 2 . 5 . 6 Robot Miss Streak 3 | 1 . 3 . 3 Penetration Max . | . . . . . Secondary Targets 1 | . . 1 . . Max Gunslinging Chain 1 | . . 1 . . Shots Hit Robots 38 | 3 . 13 . 22 Core Hits 29 | 2 . 8 . 19 Critical Kills . | . . . . . Critical Parts Destroyed . | . . . . . Critical Strikes . | . . . . . Melee Attacks . | . . . . . Impact . | . . . . . Slashing . | . . . . . Piercing . | . . . . . Sneak Attacks . | . . . . . Combat Hostiles . | . . . . . Follow-up Attacks . | . . . . . Damage Inflicted 839 | 39 . 140 . 660 Guns 377 | 39 . 140 . 198 Cannons . | . . . . . Explosions 462 | . . . . 462 Melee . | . . . . . Ramming . | . . . . . Kinetic 17 | 17 . . . . Thermal 360 | 22 . 140 . 198 Explosive 462 | . . . . 462 Electromagnetic . | . . . . . Impact . | . . . . . Slashing . | . . . . . Piercing . | . . . . . Highest Corruption . | . . . . . Average Corruption . | . . . . . Corruption Purged . | . . . . . Corruption Blocked . | . . . . . Overload Shots . | . . . . . Overflow Damage 35 | . . . . 35 Projectiles . | . . . . . Explosions 35 | . . . . 35 Melee . | . . . . . Knockbacks . | . . . . . Impact . | . . . . . Kinetic . | . . . . . Secondary . | . . . . . Self-Inflicted Damage 53 | . . . . 53 Shots 2 | . . . . 2 Rammed . | . . . . . Targets Rammed . | . . . . . Kicked . | . . . . . Crushed . | . . . . . Highest Temperature 328 | 52 . 199 . 328 Average Temperature 122 | 26 . 107 . 142 Received Heat Transfer 369 | 12 . 48 . 309 Effects 2 | . . . . 2 Shutdowns 1 | . . . . 1 Energy Bleed 1 | . . . . 1 Siege Activations . | . . . . . Robots Corrupted . | . . . . . Combat Hostiles . | . . . . . Parts Fried . | . . . . . Impact Corruptions . | . . . . . Robots Melted . | . . . . . Combat Hostiles . | . . . . . Parts Melted . | . . . . . Heat Transferred 825 | 50 . 325 . 450 Parts Sabotaged . | . . . . . Parts Stolen . | . . . . . Parts Stripped . | . . . . . Power Chain Reactions . | . . . . . Alert | -11 -10 -10 -10 -9 ------- Run | Yrd Mat Min Exi Min Peak Influence 180 | 20 28 180 . 84 Initial 13 | . 13 10 . . Average 56 | 2 13 133 . 47 Maximum Alert Level . | . . . . . Low Security (%) 100 | 100 100 100 . 100 Level 1 . | . . . . . Level 2 . | . . . . . Level 3 . | . . . . . Level 4 . | . . . . . Level 5 . | . . . . . High Security . | . . . . . Max Security . | . . . . . Squads Dispatched . | . . . . . Investigation . | . . . . . Extermination . | . . . . . Reinforcement . | . . . . . Assault . | . . . . . Garrison . | . . . . . Intercept . | . . . . . Searches Triggered . | . . . . . Construction Impeded . | . . . . . Haulers Reinforced . | . . . . . Active Scanning Responses . | . . . . . Cargo Convoy Interrupts . | . . . . . Stealth | -11 -10 -10 -10 -9 --------- Run | Yrd Mat Min Exi Min Distress Signals . | . . . . . Communications Jammed . | . . . . . Distress Signals . | . . . . . Times Spotted 26 | 1 1 8 . 16 Peak Tracking Total 9 | 1 1 3 . 9 Tactical Retreats 1 | . . 1 . . Traps | -11 -10 -10 -10 -9 ------- Run | Yrd Mat Min Exi Min Traps Triggered . | . . . . . Indirectly . | . . . . . Trap Hack Attempts . | . . . . . Triggered . | . . . . . Disarmed . | . . . . . Reprogrammed . | . . . . . Reused . | . . . . . Traps Extracted . | . . . . . Installed . | . . . . . Triggered . | . . . . . Machines | -11 -10 -10 -10 -9 ---------- Run | Yrd Mat Min Exi Min Machines Disabled . | . . . . . Max in Single Turn . | . . . . . Machines Repaired . | . . . . . Machines Dismantled . | . . . . . Machines Sabotaged . | . . . . . Overloaded Fab Kills . | . . . . . Hacking | -11 -10 -10 -10 -9 --------- Run | Yrd Mat Min Exi Min Machines Accessed 1 | . . . 1 . Terminals . | . . . . . Fabricators . | . . . . . Repair Stations . | . . . . . Recycling Units . | . . . . . Scanalyzers . | . . . . . Garrison Access . | . . . . . Total Hacks 1 | . . . 1 . Successful 1 | . . . 1 . Failed . | . . . . . Catastrophic . | . . . . . Database Lockouts . | . . . . . Manual 1 | . . . 1 . Terminals . | . . . . . Fabricators . | . . . . . Repair Stations . | . . . . . Recycling Units . | . . . . . Scanalyzers . | . . . . . Garrison Access . | . . . . . Terminal Hacks 1 | . . . 1 . Derelict Proto ID Bank 1 | . . . 1 . Fabricator Hacks . | . . . . . Repair Station Hacks . | . . . . . Recycling Unit Hacks . | . . . . . Scanalyzer . | . . . . . Garrison Access Hacks . | . . . . . Unauthorized Hacks . | . . . . . Terminals . | . . . . . Fabricators . | . . . . . Repair Stations . | . . . . . Recycling Units . | . . . . . Scanalyzers . | . . . . . Garrison Access . | . . . . . Data Cores Recovered . | . . . . . Used . | . . . . . Hacking Detections . | . . . . . Full Trace Events . | . . . . . Feedback Events . | . . . . . Feedback Blocked . | . . . . . Robot Schematics Acquired . | . . . . . Robots Built . | . . . . . Authchips . | . . . . . Time . | . . . . . Total Robot Build Rating . | . . . . . Part Schematics Acquired . | . . . . . Parts Built . | . . . . . Authchips . | . . . . . Time . | . . . . . Total Part Build Rating . | . . . . . Parts Repaired . | . . . . . Time . | . . . . . Parts Recycled . | . . . . . Recycled Matter . | . . . . . Retrieved Matter . | . . . . . Retrieved Components . | . . . . . Parts Scanalyzed . | . . . . . Part Schematics Acquired . | . . . . . Parts Damaged . | . . . . . Bothacking | -11 -10 -10 -10 -9 ------------ Run | Yrd Mat Min Exi Min Used RIF Installer . | . . . . . Robots Hacked . | . . . . . Non-combat . | . . . . . Combat . | . . . . . Robot Hacks Applied . | . . . . . Relay Couplers Released . | . . . . . Fabnet Peak Effective % . | . . . . . Robots Rewired . | . . . . . Allies Hacked . | . . . . . Hacks Repelled . | . . . . . Allies | -11 -10 -10 -10 -9 -------- Run | Yrd Mat Min Exi Min Total Allies . | . . . . . Largest Group . | . . . . . Highest-Rated Group . | . . . . . Highest-Rated Ally . | . . . . . Total Orders . | . . . . . Ally Attacks . | . . . . . Total Damage . | . . . . . Kills . | . . . . . Allies Corrupted . | . . . . . Allies Melted . | . . . . . Intel | -11 -10 -10 -10 -9 ------- Run | Yrd Mat Min Exi Min Robot Analysis Total . | . . . . . Derelict Logs Recovered 1 | . . . . 1 Drone Launches . | . . . . . Drone Recoveries . | . . . . . Exploration | -11 -10 -10 -10 -9 ------------- Run | Yrd Mat Min Exi Min Turns Passed 935 | 91 96 168 190 390 Spaces Moved 902 | 71 67 271 231 262 Core 21 | 21 . . . . Treads . | . . . . . Legs 501 | 50 67 13 109 262 Wheels . | . . . . . Hover . | . . . . . Flight 380 | . . 258 122 . Fastest Speed 37 | 50 120 37 37 120 Average Speed 83 | 99 120 40 78 120 Slowest Speed 190 | 120 120 120 190 120 Overloaded Moves . | . . . . . Propulsion Burnouts . | . . . . . Robots Hopped . | . . . . . Cave-ins Triggered . | . . . . . Exploration Rate (%) 40 | 9 17 50 61 67 Regions Visited 4 Branch Regions 3 Pre-discovered Areas . | . . . . . Known Exits Taken 2 | . 1 1 . . Unknown Exits Taken 2 | 1 . . 1 . Scrap Searched 2 | . . 1 . 1 Spaces Dug . | . . . . . Terrain Destroyed 69 | . . . . 69 Melee . | . . . . . Projectile . | . . . . . AOE 69 | . . . . 69 Terrain Rammed . | . . . . . Walls Destroyed . | . . . . . Machines Disabled . | . . . . . Actions | -11 -10 -10 -10 -9 --------- Run | Yrd Mat Min Exi Min Total 1009 | 85 82 302 240 300 Wait 21 | . 12 9 . . Move 898 | 70 66 270 230 262 Hop . | . . . . . Pick Up 23 | 6 2 6 3 6 Fast Attach 2 | . . . . 2 Attach 9 | 5 2 1 . 1 Detach . | . . . . . Swap 11 | 1 . 3 3 4 Drop 11 | . . 1 4 6 Fire 34 | 3 . 12 . 19 Melee . | . . . . . Ram . | . . . . . Kick . | . . . . . Crush . | . . . . . Escape Stasis . | . . . . . Rewire . | . . . . . Trap . | . . . . . Miscellaneous . | . . . . . Route ------- -11/Scrapyard -10/Materials -10/Mines -10/Exiles -9/Mines (discovered 1 exit: [*Mat]) History --------- Turn | Location | Event 2 | -11/Scrapyard | Met Revision 17 69 | -11/Scrapyard | Discovered new exit (range 8) 92 | -11/Scrapyard | Entered Materials 182 | -10/Materials | Discovered new exit (range 6) 186 | -10/Materials | Identified exit to Mines 188 | -10/Materials | Entered Mines 354 | -10/Mines | Deemed a non-threat by the Exiles lab entrance 355 | -10/Mines | Discovered new exit (range 5) 356 | -10/Mines | Identified exit to Exiles 356 | -10/Mines | Entered Exiles 367 | -10/Exiles | Met 8R-AWN 373 | -10/Exiles | Met EX-HEX 384 | -10/Exiles | Met EX-BIN 389 | -10/Exiles | Aligned with FarCom system 389 | -10/Exiles | Given EX-Vault access code 401 | -10/Exiles | Opened EX-Vault 403 | -10/Exiles | Found Cloak of Protection 445 | -10/Exiles | Warned to stay clear of 0b10 Research branches 480 | -10/Exiles | Met EX-DEC 530 | -10/Exiles | Discovered new exit (range 14) 546 | -10/Exiles | Left Exiles lab with Cloak of Protection 546 | -10/Exiles | Entered Mines 620 | -9/Mines | Discovered new exit (range 6) 705 | -9/Mines | Received a Rocket Launcher from a helpful Derelict 897 | -9/Mines | Assembled infested the area 933 | -9/Mines | Core integrity fell below 50% 934 | -9/Mines | Core integrity fell below 20% 936 | -9/Mines | Destroyed by D-53 Grenadier with Mini Grenade Launcher Last Messages --------------- R-06 Scavenger destroyed. as-47390 destroyed. The unstable cave ceiling collapses. as-22326 destroyed. The unstable cave ceiling collapses. D-53 Grenadier unfolds itself. as-32999 destroyed. as-09464 destroyed. as-59792 destroyed. Cloak of Protection destroyed. Destroyed Cloak of Protection. Critical hit (Burn: +80). Aluminum Leg destroyed. as-39705 destroyed. Rocket Launcher destroyed. The unstable cave ceiling collapses. Ion Engine destroyed. Sml. Laser destroyed. Aluminum Leg destroyed. The unstable cave ceiling collapses. Map ----- +----------------------------------------------------+ | | | | | | | | | | | | | | | | | | | | | | | | | | | | | | | | | | | ???????????????????????????????????????????????? | | ????????????????????####???????????????????????? | | ????????????????##### ###????????????????????? | | ????????????????# # ##???????????????????? | | ??????????????### ## ##?????######???????? | | ??????????????? a #?????# ??????? | | ????????????????## ####??# ?????? | | ????????????????# # #### """" #####? | | ????????????????# @ """" #? | | ???????????????##### %"""" #? | | ??????????????## # d d### ## #? | | ?????????????## ##### ###?# #? | | ?????????????# ####?????# #? | | ?????????????# ##### ## | | ?????????????## # ##### | | ??????????????### ## ##??# | | ????????????????###?# a #####??## | | ????????????????????## = ####?????## | | ?????????????????????##% ###???????## | | ??????????????????????# ?????????# ## | | ????????# ## ##### #??####?## #### | | ????????# = #### ### ####??## | | ????????+ !%! ## ##??????## | | ????????+ ######## = ##???????? | | ????????????????????? % #####???? | | ?????????????????????### ##??? | | ????????????????????????# ### ##?# | | ????????????????????????# ##?#### ## | | ????????????????????????## #?????## | | ?????????????????????????## ##?????### | | ??????????????????????????## #######?## | | ???????????????????????????## ## ##?## | | ????????????????????????????### #??# ## | +----------------------------------------------------+ Best States ------------- Heat Dissipation 25 Energy Generation 10 Energy Capacity 250 Matter Stores 300 Matter Capacity 300 Sight Range 16 Terrain Scan Range 14 Terrain Scan Density 10 Cloak Strength 5 Evasion (%) 62 Targeting Accuracy 5 Item Schematics ----------------- None Robot Schematics ------------------ None Fabricated ------------ Nothing Alien Tech Used ----------------- None Achievements -------------- None Challenges ------------ None Game ------ Seed TransmissionForceInterrupter Manual? 0 Play Time 00:13:31 Cumulative 1.1 hours Start 2024.11.24 @ 15:57:41 End 2024.11.24 @ 16:09:56 Sessions 1 Manual Loads 0 Difficulty Rogue Special Mode None Game No. 3 Rogue 3 Adventurer 0 Explorer 0 Win Type - Total 0 Types 0/0/0/0/0/0/0/0/0 Lore% 2 Gallery% 3 Achievement% 2 Wizard Run 0 Options --------- Layout 1 ASCII 0 Keyboard 0 Movement Mouse Keybinds 0 Fullscreen 1 Font 24/Smallcaps Map View 50x35 Zoom Use 0% Tactical HUD 0 Map Filters NONE Filters NONE Steam 1 RUN: 73b04f60-19ef-4718-a88d-8582ccc861fe